[Event "16th Serbian Championship 2022"]
[Site "Bajina Basta"]
[Date "2022.12.14"]
[Round "9.4"]
[White "Radovanovic, Nikola"]
[Black "Ivic, Velimir"]
[Result "0-1"]
[ECO "B32"]
[WhiteElo "2414"]
[BlackElo "2560"]
[Annotator "TA"]
[PlyCount "74"]
[EventDate "2022.12.06"]
[EventType "tourn"]
[EventCountry "SRB"]
[SourceTitle "playchess.com"]
[Source "ChessBase"]
[SourceQuality "1"]
[TimeControl "40/5400+30:1800+30"]

{[%evp 14,74,33,22,37,24,12,18,21,21,35,38,29,22,24,27,29,0,7,5,16,0,0,-25,-22,-30,-16,0,0,0,0,-20,-5,-43,-27,-50,-35,-39,-45,-40,-29,-122,-37,-54,-61,-223,-229,-234,-230,-223,-221,-430,-409,-604,-568,-29979,-29980,-29991,-29992,-29992,-29993,-29994,-29995]} 1. e4 {[%emt 0:00:03]} c5 {[%emt 0:01:15]} 2. Nf3 {[%emt 0:00:07][%cal Bg1f3,Bf3d4,Bd4b5,Bb5a3,Ba3c4,Bc4e3][%mdl 32]} Nc6 {[%emt 0:00:11]} 3. d4 {[%emt 0:00:09]} cxd4 {[%emt 0:00:06]} 4. Nxd4 {[%emt 0:00:04]} e5 {[%emt 0:00:36]} 5. Nb5 {[%emt 0:00:23]} d6 {[%emt 0:00:09]} 6. N1c3 {[%emt 0:00:22]} a6 {[%emt 0:00:19]} 7. Na3 {[%emt 0:00:05]} Be6 {[%emt 0:00:38]} 8. Nc4 {[%emt 0:00:17]} Rb8 {[%emt 0:00:17] now supersedes 8...b5. B32: Sicilian: Löwenthal and Kalashnikov Variations.} 9. Ne3 {[%emt 0:02:42]} Nf6 {[%emt 0:01:38]} 10. Bd3 {[%emt 0:01:59]} g6 {[%emt 0:00:27] The position is equal.} 11. O-O {[%emt 0:02:46] [#]} Rc8 $5 $146 {[%emt 0:00:19][%mdl 8] An interesting novelty.} ({Predecessor:} 11... Bg7 12. Ncd5 Bxd5 13. exd5 Ne7 14. c4 O-O 15. Be2 Nd7 16. b3 e4 17. Rb1 f5 {0-1 (42) Alekseenko,K (2698)-Dardha,D (2561) Chess.com INT 2022}) 12. Ncd5 {[%emt 0:09:36]} Bxd5 {[%emt 0:00:10]} 13. Nxd5 {[%emt 0:07:46]} Nxd5 {[%emt 0:01:03]} 14. exd5 {[%emt 0:00:27]} Nb8 {[%emt 0:07:32][%cal Bc6b8,Bb8d7,Bd7c5][%mdl 32]} 15. a4 {[%emt 0:07:57]} Bg7 {[%emt 0:02:42]} 16. a5 {[%emt 0:00:25]} O-O {[%emt 0:00:33]} 17. Ra3 {[%emt 0:03:26]} Nd7 {[%emt 0:01:30]} 18. Qe1 {[%emt 0:08:15]} f5 {[%emt 0:05:48]} 19. f3 {[%emt 0:03:52] Prevents e4.} Re8 {[%emt 0:09:00][%cal Oe5e4]} 20. Qb4 {[%emt 0:01:28] Inhibits e4.} Nc5 {[%emt 0:14:59]} 21. Be3 {[%emt 0:07:13]} Qe7 {[%emt 0:11:42]} 22. Re1 {[%emt 0:06:16]} e4 {[%emt 0:08:54]} (22... Nxd3 {simplifies} 23. cxd3 Qf7 24. Qb3 h5) 23. fxe4 {[%emt 0:06:35]} Nxe4 {[%emt 0:02:04]} 24. Bf2 {[%emt 0:09:33] Inhibits Nc5.} Be5 {[%emt 0:11:20] Hoping for ...Nxf2.} (24... Qg5 {looks sharper.} 25. Bxe4 fxe4 26. Rxe4 Be5) 25. Bxe4 {[%emt 0:02:19]} fxe4 {[%emt 0:00:04]} 26. c3 {[%emt 0:04:54]} Qf7 {[%emt 0:06:23]} 27. g3 {[%emt 0:03:55]} (27. Raa1 $11 {keeps the balance.}) 27... Rf8 {[%emt 0:04:17]} ({Of course not} 27... Qxd5 $6 28. Qxe4 Qd2 29. Qb1 $11 (29. Qxb7 Rf8 $14)) (27... b5 $1 $17 {Threatens to win with ...Rf8.} 28. axb6 Rf8) 28. Qb6 {[%emt 0:00:58]} Qxd5 {[%emt 0:02:02]} 29. Ra4 $2 {[%emt 0:01:16] This move loses the game for White.} (29. Qb3 $15 Rc4 30. Ra4) 29... Rf3 $1 $19 {[%emt 0:03:57]} 30. Raxe4 {[%emt 0:02:24]} Rcf8 {[%emt 0:00:19]} 31. R4e2 {[%emt 0:00:15] [#]} (31. Bd4 Bxg3 $1 {[%mdl 512]} 32. Qc7 Bxh2+ $1 {[%mdl 512]} 33. Kh1 Be5 34. Bxe5 Rf1+ 35. Rxf1 Qxe4+ 36. Kg1 Qg4+ 37. Kh2 Qe2+ 38. Kg3 Qxe5+ 39. Kh3 Qe3+ 40. Kh4 Qe4+ 41. Kh3 Qd3+ 42. Kh2 Qxf1 43. Qb6 Rf2+) 31... Qf7 $1 {[%emt 0:01:37] aiming for ...h5.} 32. Rd1 $2 {[%emt 0:07:18] [#]} (32. Kg2) 32... h5 $1 {[%emt 0:00:46][%cal Oh5h4] ...h4! is the strong threat.} 33. Rdd2 {[%emt 0:00:04] Against h4} (33. Kf1 $142 h4 34. Ke1) 33... h4 $1 {[%emt 0:00:46][%cal Rh4g3]} 34. Kg2 {[%emt 0:01:07]} hxg3 {[%emt 0:00:41] Black mates.} 35. hxg3 {[%emt 0:00:05] [#]} Rxg3+ $3 {[%emt 0:00:13][%cal Bf3g3,Bg3h3,Bh3h1][%mdl 544]} 36. Kf1 {[%emt 0:00:30]} Rh3 {[%emt 0:00:43]} 37. Re3 {[%emt 0:00:39]} Rh1+ {[%emt 0:00:06] Weighted Error Value: White=0.56/Black=0.06 (flawless)} 0-1

[Event "16th Serbian Championship 2022"]
[Site "Bajina Basta"]
[Date "2022.12.14"]
[Round "9.5"]
[White "Kovacevic, Aleksandar"]
[Black "Djordjevic, Vuk"]
[Result "1-0"]
[ECO "C04"]
[WhiteElo "2470"]
[BlackElo "2394"]
[Annotator "TA"]
[PlyCount "111"]
[EventDate "2022.12.06"]
[EventType "tourn"]
[EventCountry "SRB"]
[SourceTitle "playchess.com"]
[Source "ChessBase"]
[SourceQuality "1"]
[TimeControl "40/5400+30:1800+30"]

{[%evp 11,111,32,41,32,41,46,47,45,54,51,59,43,54,25,29,31,27,22,23,16,19,12,9,0,0,0,8,0,0,0,0,0,44,37,59,55,65,61,52,62,62,0,36,20,20,14,18,20,16,20,14,14,14,19,19,15,17,18,16,18,29,28,32,13,27,0,4,0,8,0,78,61,262,262,287,293,291,289,481,486,485,479,655,654,1198,550,541,533,533,498,507,488,461,419,533,519,644,634,625,595,541,402]} 1. e4 {[%emt 0:00:19]} e6 {[%emt 0:00:25]} 2. d4 {[%emt 0:00:07]} d5 {[%emt 0:00:15]} 3. Nd2 {[%emt 0:00:25]} Nc6 {[%emt 0:00:54]} 4. Ngf3 {[%emt 0:00:27]} Nf6 {[%emt 0:00:18]} 5. e5 {[%emt 0:00:22]} Nd7 {[%emt 0:00:09]} 6. Nb3 {[%emt 0:01:36]} Be7 {[%emt 0:01:23]} 7. Bf4 {[%emt 0:00:14] C04: French Tarrasch: 3...Nc6.} a5 {[%emt 0:02:20]} 8. a4 {[%emt 0:00:34]} b6 {[%emt 0:23:52]} 9. h4 {[%emt 0:02:29] White is slightly better.} Ba6 {[%emt 0:02:01]} 10. Bxa6 {[%emt 0:01:06]} Rxa6 {[%emt 0:00:04]} 11. Rh3 {[%emt 0:01:59] [#]} h5 $146 {[%emt 0:10:39]} ({Predecessor:} 11... Ndb8 12. Rg3 Bf8 13. h5 h6 14. c3 Ne7 15. Nh4 Kd7 16. Be3 Kc8 17. Qg4 Qd7 {1-0 (59) Samani,Y (2263)-Yurtseven,M (2353) Kocaeli 2017}) 12. Ng5 {[%emt 0:13:59]} Nf8 {[%emt 0:12:02]} 13. Bd2 {[%emt 0:05:52]} Qd7 {[%emt 0:06:12]} 14. c3 {[%emt 0:06:39]} Ra8 {[%emt 0:06:25]} 15. Nc1 {[%emt 0:01:46]} Bd8 {[%emt 0:12:27]} 16. Nd3 {[%emt 0:17:02]} Ng6 {[%emt 0:03:18]} 17. g4 {[%emt 0:03:10]} hxg4 {[%emt 0:00:51]} 18. Qxg4 {[%emt 0:00:22]} Nce7 {[%emt 0:03:03]} 19. h5 {[%emt 0:02:05]} Nf8 {[%emt 0:00:30]} 20. Nf3 $36 {[%emt 0:04:40][%cal Bg5f3,Bf3h2,Bh2f1][%mdl 2080] White is pushing.} ({But not} 20. Nxf7 Kxf7 21. Rf3+ (21. h6 $2 g6 $19) 21... Kg8 $17) 20... Nf5 {[%emt 0:00:41]} 21. Nh2 {[%emt 0:04:45]} Qe7 {[%emt 0:05:28]} 22. Nf1 {[%emt 0:01:14]} g6 {[%emt 0:00:36]} 23. Nf4 {[%emt 0:06:18]} c5 {[%emt 0:03:21]} 24. hxg6 {[%emt 0:13:33] White is more active.} Rxh3 {[%emt 0:00:17]} 25. gxf7+ $1 {[%emt 0:03:17]} Qxf7 {[%emt 0:01:40]} 26. Nxh3 {[%emt 0:01:00]} ({Better is} 26. Qxh3 $14 cxd4 27. cxd4) 26... Rc8 {[%emt 0:00:49]} 27. Ne3 {[%emt 0:01:13] Nxf5 is the strong threat.} cxd4 {[%emt 0:02:14]} 28. Nxf5 {[%emt 0:00:33]} Qxf5 {[%emt 0:01:13]} 29. Qxf5 {[%emt 0:00:38]} exf5 {[%emt 0:00:05]} 30. Nf4 {[%emt 0:00:48] Inhibits Ne6.} dxc3 {[%emt 0:00:24]} 31. Bxc3 {[%emt 0:00:11]} d4 {[%emt 0:01:05]} 32. Bxd4 {[%emt 0:00:50]} Rc4 {[%emt 0:00:09]} 33. Be3 {[%emt 0:03:44]} Re4 {[%emt 0:00:52][%cal Od8g5]} 34. Nd5 {[%emt 0:01:32]} Rxe5 {[%emt 0:00:53]} 35. O-O-O {[%emt 0:00:08]} Nd7 {[%emt 0:00:30]} 36. Kc2 {[%emt 0:00:46]} Re6 {[%emt 0:00:29]} 37. Rd3 {[%emt 0:01:02]} Ne5 {[%emt 0:00:17]} 38. Rc3 {[%emt 0:00:26]} Ng4 {[%emt 0:00:43]} 39. Rd3 {[%emt 0:01:30]} Rc6+ {[%emt 0:00:21]} 40. Kb3 {[%emt 0:01:03]} Rd6 {[%emt 0:00:40]} (40... Nxe3 $11 {remains equal.} 41. Nxe3 (41. Rxe3+ Kd7 $11) 41... Rc5) 41. Bf4 $16 {[%emt 0:02:23]} Re6 {[%emt 0:18:38] [#] A mistake that costs the game.} ({Black should try} 41... Rc6 $14) 42. f3 $1 $18 {[%emt 0:01:46]} Nf2 {[%emt 0:00:19]} 43. Rd2 {[%emt 0:02:43]} Nh3 {[%emt 0:00:21] [#]} 44. Bc7 {[%emt 0:00:55]} Rh6 $2 {[%emt 0:02:17]} (44... Bg5 {is a better defense.} 45. Rh2 Rh6 46. Bxb6 Bd8) 45. Bxd8 {[%emt 0:01:26]} Kxd8 {[%emt 0:00:04][%mdl 4096] Endgame KRN-KRN} 46. Nf4+ {[%emt 0:01:36]} ({Not} 46. Nxb6+ Kc7 $16) 46... Ke7 {[%emt 0:01:20]} 47. Rh2 {[%emt 0:00:12]} Rh4 {[%emt 0:00:21]} 48. Nxh3 {[%emt 0:00:06] KRN-KR} (48. Ng6+ $142 Kd6 49. Nxh4) 48... Kd6 {[%emt 0:00:31]} 49. Rd2+ {[%emt 0:04:09]} Ke5 {[%emt 0:00:03]} 50. Nf2 {[%emt 0:00:15]} Rb4+ {[%emt 0:00:10]} 51. Kc3 {[%emt 0:05:16] Intending Nd3+ and mate.} Rxa4 {[%emt 0:00:23]} 52. Nd3+ {[%emt 0:00:06]} Kf6 {[%emt 0:00:17]} 53. Rh2 {[%emt 0:00:12] White is clearly winning.} b5 {[%emt 0:00:19]} 54. Rh6+ {[%emt 0:01:22]} Kg5 {[%emt 0:00:04]} 55. Rb6 {[%emt 0:00:44]} b4+ {[%emt 0:00:38]} 56. Kd4 {[%emt 0:03:36] Weighted Error Value: White=0.16 (very precise) /Black=0.28 (precise)} 1-0